bitfinex/quotes_ETHUSD_20250319
["timestamp","ask_amount","ask_price","bid_price","bid_amount"]
[1742400882583,4.88376,2047.6,2047.3,6.06]
[1742400882584,4.88402,2047.5,2047.3,6.06]
[1742400882782,4.88402,2047.5,2047.3,7.232404]
[1742400882960,9.36978551,2047.6,2047.3,7.232404]
[1742400883279,4.04082358,2047.5,2047.3,7.232404]
[1742400883479,8.92484358,2047.5,2047.3,6.06]
[1742400883680,13.80901358,2047.5,2047.3,6.06]
[1742400883883,4.88424,2047.4,2047.3,6.06]
[1742400884047,8.92484358,2047.5,2047.3,6.06]
[1742400884277,13.80901358,2047.5,2047.3,6.06]
[1742400884505,13.80901358,2047.5,2047.0,4.88518]
[1742400884506,4.88433,2047.4,2047.0,5.66403]
[1742400884708,4.04082358,2047.3,2047.0,5.66403]
[1742400884911,4.04082358,2047.3,2047.1,4.88494]
[1742400885217,4.04082358,2047.3,2047.1,9.76988]
[1742400885518,4.04082358,2047.3,2047.1,4.88494]
[1742400886706,8.92489358,2047.5,2047.1,4.88494]
[1742400886903,4.04082358,2047.5,2047.2,4.88469]
[1742400887220,13.80910358,2047.5,2047.1,4.88494]
[1742400887513,4.04082358,2047.3,2047.0,5.66408]
[1742400887815,4.04082358,2047.3,2047.0,5.66397]
[1742400888019,4.04082358,2047.3,2047.1,4.88486]
[1742400888216,4.04082358,2047.3,2047.0,10.54904]
[1742400888515,4.04082358,2047.3,2047.0,5.66397]
[1742400888982,4.04082358,2047.3,2047.0,10.54901]
[1742400889313,8.92545358,2047.3,2047.0,0.7789]
[1742400890519,8.92545358,2047.3,2047.0,5.66408]
[1742400890702,8.92545358,2047.3,2047.0,0.7789]
[1742400892123,4.04082358,2047.3,2047.0,5.66398]
[1742400892324,4.04082358,2047.3,2047.1,6.03558404]
[1742400892500,4.04082358,2047.3,2047.0,5.66402]
[1742400893113,4.88426,2047.4,2047.0,5.66389]
[1742400893290,4.88426,2047.4,2047.0,5.66395]
[1742400893708,4.04082358,2047.3,2047.0,5.66395]
[1742400893988,8.92533358,2047.3,2047.0,5.66395]
[1742400894394,4.04082358,2047.3,2047.0,5.66395]
[1742400895505,8.92483358,2047.5,2047.1,4.88485]
[1742400895735,4.83432358,2047.2,2046.6,0.7735]
[1742400895916,4.04082358,2046.8,2046.6,0.7735]
[1742400896408,4.04082358,2046.8,2046.4,10.77623594]
[1742400896409,8.92658358,2046.8,2046.4,10.77623594]
[1742400896731,8.92658358,2046.8,2046.4,5.88969594]
[1742400896942,8.92658358,2046.8,2046.3,11.76056]
[1742400896943,4.04082358,2046.6,2046.3,7.87428252]
[1742400897098,4.88697,2046.3,2046.0,0.7698]
[1742400897298,4.04082358,2046.2,2045.8,11.71784]
[1742400897498,8.92800358,2046.2,2045.9,3.0]
[1742400897815,13.81529358,2046.2,2045.8,11.71771]
[1742400898017,4.04082358,2046.0,2045.8,6.8298]
[1742400898418,8.92856358,2046.0,2045.6,5.71663]
[1742400898593,8.92856358,2046.0,2045.6,0.8281]
[1742400898594,4.88793,2045.9,2045.6,0.8281]
[1742400898798,8.92848358,2046.0,2045.6,4.8885]
[1742400898994,4.04082358,2045.8,2045.4,0.8281]
[1742400899206,21.77717,2046.2,2045.9,4.88773]
[1742400899207,16.89,2046.2,2045.9,4.88773]
[1742400899405,16.89,2046.2,2045.8,0.789]
[1742400899660,16.89,2046.2,2046.1,4.88734]
[1742400900535,16.89,2046.2,2046.0,4.8875]
[1742400900536,5.129,2046.6,2046.3,9.77356]
[1742400900734,5.129,2046.6,2046.3,4.8867]
[1742400900926,5.129,2046.6,2046.3,4.88686]
[1742400901122,5.129,2046.6,2046.5,4.88639]
[1742400901325,16.892,2046.8,2046.5,9.77267]
[1742400901556,21.77775,2046.8,2046.4,4.88651]
[1742400901749,9.36822251,2046.7,2046.3,5.94483]
[1742400901913,9.36822251,2046.7,2046.3,4.88674]
[1742400902110,4.88615,2046.6,2046.2,0.8067]
[1742400902313,9.61122251,2046.5,2046.0,6.8341]
[1742400902515,4.48222251,2046.3,2046.0,5.66164]
[1742400902761,9.36918251,2046.3,2046.0,0.7741]
[1742400902954,4.88712,2046.2,2045.8,0.8197]
[1742400903129,9.36918251,2046.3,2045.9,4.88774]
[1742400903328,9.36918251,2046.3,2045.8,2.02057]
[1742400903329,4.48222251,2046.3,2046.1,4.88717]
[1742400903559,15.26676251,2046.5,2046.1,4.88734]
[1742400903950,15.26676251,2046.5,2046.1,4.88718]
[1742400904158,4.88671,2046.4,2046.1,4.88718]
[1742400904657,4.48222251,2046.3,2046.0,9.77501]
[1742400904957,4.48222251,2046.3,2046.0,4.88744]
[1742400905261,4.48222251,2046.1,2045.8,0.8197]
[1742400905416,4.48222251,2046.3,2045.8,0.8197]
[1742400905615,4.48222251,2046.3,2046.0,4.88755]
[1742400905822,4.48222251,2046.1,2045.9,4.88774]
[1742400906022,4.88761,2046.0,2045.7,4.88817]
[1742400906217,4.88807,2045.8,2045.4,5.66089]
[1742400906456,4.48222251,2045.5,2045.2,5.8618786]
[1742400906821,5.30192251,2045.7,2045.1,5.69574]
[1742400907153,5.30192251,2045.7,2045.5,4.8887]
[1742400907352,5.30192251,2045.7,2045.4,4.88893]
[1742400907719,5.30192251,2045.7,2045.4,4.88889]
[1742400908044,5.30192251,2045.7,2045.5,4.88866]
[1742400908250,26.50622251,2046.0,2045.7,4.88826]
[1742400908554,21.37722251,2046.0,2045.8,4.88798]
[1742400908858,26.50622251,2046.0,2045.8,4.88798]
[1742400909058,22.024,2046.0,2045.9,4.88782]
[1742400909257,26.50622251,2046.0,2045.9,4.88782]
[1742400909559,33.44208802,2046.0,2045.6,4.88846]
[1742400909761,4.48222251,2045.8,2045.6,4.88846]
[1742400910944,4.48222251,2045.8,2045.5,4.88876]
[1742400911322,9.37038251,2045.8,2045.5,4.88876]
[1742400911522,9.37038251,2045.8,2045.4,4.88894]
[1742400911761,4.48222251,2045.8,2045.3,0.8165]
[1742400911949,9.37031251,2045.8,2045.5,4.88865]
[1742400912120,4.48222251,2045.6,2045.4,4.88901]
[1742400912323,4.48222251,2045.6,2045.2,4.88946]
[1742400912324,9.37089251,2045.6,2045.2,4.88946]
[1742400912561,9.37089251,2045.6,2045.2,9.7788]
[1742400912725,4.48222251,2045.6,2045.4,4.88893]
[1742400912925,4.48222251,2045.6,2045.4,9.77778]
[1742400913226,4.48222251,2045.6,2045.4,4.88885]
[1742400913644,4.48222251,2045.6,2045.4,4.88886]
[1742400914140,4.48222251,2045.6,2045.3,4.88922]
[1742400914690,9.37077251,2045.6,2045.3,4.88922]
[1742400914991,0.8197,2045.5,2045.3,4.88922]
[1742400915790,7.72943425,2045.5,2045.1,5.6855]
[1742400915952,4.48222251,2045.6,2045.3,4.88908]
[1742400916288,4.48222251,2045.6,2045.4,4.8889]
[1742400916887,4.48222251,2045.6,2044.8,4.89026]
[1742400916888,0.7933,2045.4,2044.6,0.37241312]
[1742400917052,0.7933,2045.4,2044.5,6.06]
[1742400917053,4.8895,2045.2,2044.8,4.89037]
[1742400917250,4.88983,2045.1,2044.7,5.65545]
[1742400917457,4.8895,2045.2,2044.7,5.65557]
[1742400917659,9.77975,2045.1,2044.7,5.65557]
[1742400917873,5.13,2045.3,2044.5,9.06]
[1742400917874,4.8895,2045.2,2044.8,4.8904]
[1742400918074,4.48222251,2045.2,2045.0,4.88997]
[1742400918253,5.13,2045.3,2045.0,4.88997]
[1742400918457,5.13,2045.3,2045.1,4.88972]
[1742400918991,0.7933,2045.1,2044.7,0.7649]
[1742400919291,0.7933,2045.1,2044.9,4.88998]
[1742400919466,4.48222251,2045.0,2044.8,4.8903]
[1742400919667,4.48222251,2045.0,2044.7,5.65549]
[1742400919867,4.48222251,2045.0,2044.8,4.89031]
[1742400920689,4.48222251,2045.0,2044.7,4.89058]
[1742400921895,9.37221251,2045.0,2044.6,9.7817]
[1742400922098,4.48222251,2045.0,2044.6,4.89093]
[1742400922302,9.37231251,2045.0,2044.6,4.89084]
[1742400922502,9.37231251,2045.0,2044.7,4.89061]
[1742400922901,4.48222251,2044.8,2044.7,4.89061]
[1742400923203,4.48222251,2044.8,2044.6,4.89079]
[1742400923369,4.48222251,2044.8,2044.7,4.89069]
[1742400925201,4.05137752,2044.8,2044.7,4.89069]
[1742400926002,4.05137752,2044.8,2044.6,4.89079]
[1742400926204,0.7893,2044.7,2044.4,5.88751304]
[1742400926368,4.05137752,2044.5,2044.3,4.89152]
[1742400926568,4.05137752,2044.5,2044.4,4.89141]
[1742400927203,4.05137752,2044.5,2044.1,4.89198]
[1742400927379,4.05137752,2044.2,2044.1,4.89198]
[1742400927568,4.05137752,2044.2,2044.1,7.89198]
[1742400927788,4.05137752,2044.2,2044.1,4.89198]
[1742400928800,4.05137752,2044.4,2044.3,4.89164]
[1742400929216,4.48987451,2044.4,2044.3,4.89164]
[1742400929420,4.48987451,2044.4,2044.2,4.89187]
[1742400929624,4.48987451,2044.4,2044.2,9.78361]
[1742400929785,4.48987451,2044.4,2044.2,4.89174]
[1742400930120,5.13,2044.5,2044.4,4.89141]
[1742400930497,5.13,2044.5,2044.3,4.89162]
[1742400930687,4.48987451,2044.6,2044.3,4.89153]
[1742400931020,4.48987451,2044.4,2044.3,4.89153]
[1742400931627,4.48987451,2044.4,2044.1,4.89209]
[1742400931914,4.48987451,2044.4,2044.2,4.89175]
[1742400932282,4.48987451,2044.4,2044.2,9.78348]
[1742400932480,4.48987451,2044.4,2044.2,4.89173]
[1742400932813,4.48987451,2044.4,2044.1,4.8921]
[1742400933059,5.94095996,2044.4,2044.1,4.89198]
[1742400933231,5.94095996,2044.4,2044.0,4.89236]
[1742400933528,5.94095996,2044.4,2044.1,4.89205]
[1742400933825,5.94095996,2044.4,2044.0,4.89229]
[1742400934007,10.83244996,2044.4,2044.0,4.89229]
[1742400934340,10.83244996,2044.4,2044.1,4.8921]
[1742400934482,10.83244996,2044.4,2043.9,0.8096]
[1742400934483,10.83244996,2044.4,2043.9,10.59467]
[1742400934682,10.83244996,2044.4,2043.9,4.89247]
[1742400934683,4.48987451,2044.2,2043.9,4.89247]
[1742400934910,5.13,2044.1,2043.9,9.78494]
[1742400935095,5.13,2044.1,2043.9,4.89247]
[1742400935527,5.13,2044.1,2044.0,4.89236]
[1742400936082,5.13,2044.1,2043.9,4.89247]
[1742400936384,5.13,2044.1,2043.8,4.89281]
[1742400936583,4.48987451,2044.0,2043.7,4.89305]
[1742400936815,4.48987451,2043.8,2043.5,0.8380831]
[1742400937017,4.48987451,2043.8,2043.6,4.89324]
[1742400937424,0.7819,2043.9,2043.7,4.89308]
[1742400937725,6.65917845,2044.1,2043.8,9.78544]
[1742400937938,0.55,2043.9,2043.5,0.0218831]
[1742400938224,0.7632,2043.6,2042.8,0.7517]
[1742400938423,0.7632,2043.6,2043.3,4.89387]
[1742400938624,5.13,2043.7,2043.3,4.89387]
[1742400938625,9.61987451,2043.7,2043.3,4.89387]
[1742400939412,9.61987451,2043.7,2043.4,4.89371]
[1742400939616,4.48987451,2043.5,2043.2,0.7517]
[1742400939922,4.48987451,2043.5,2043.1,4.89436]
[1742400940113,4.48987451,2043.5,2043.2,4.89421]
[1742400940315,4.48987451,2043.5,2043.1,4.89445]
[1742400940530,11.55587431,2043.5,2043.1,4.89445]
[1742400940730,4.48987451,2043.5,2043.1,4.89433]
[1742400940939,4.48987451,2043.5,2043.2,4.89416]
[1742400941111,4.48987451,2043.5,2043.1,4.89436]
[1742400941307,4.48987451,2043.5,2043.2,4.89424]
[1742400941548,0.7678,2043.4,2043.1,4.89442]
[1742400942052,0.7678,2043.4,2043.1,4.89449]
[1742400943138,8.85773645,2043.4,2043.0,5.65408]
[1742400943338,8.85773645,2043.4,2043.1,4.89451]
[1742400944371,3.96391645,2043.4,2043.1,4.89451]
[1742400944548,16.916,2043.6,2043.2,4.89421]
[1742400944719,16.916,2043.6,2043.5,4.89356]
[1742400945221,5.131,2044.0,2043.8,4.8928]
[1742400945409,5.131,2044.0,2043.9,4.8926]
[1742400945813,5.131,2044.0,2043.8,9.78551]
[1742400946014,5.131,2044.0,2043.8,4.89271]
[1742400946225,9.62087451,2044.0,2043.8,9.7854]
[1742400946451,9.62087451,2044.0,2043.7,4.89307]
[1742400946613,1.45131145,2043.9,2043.7,4.89291]
[1742400946815,5.131,2044.0,2043.8,4.89267]
[1742400947028,5.131,2044.0,2043.9,4.8926]
[1742400947447,9.62087451,2044.0,2043.7,4.89307]
[1742400947632,9.62087451,2044.0,2043.8,4.89275]
[1742400947837,9.62087451,2044.0,2043.7,4.89291]
[1742400948027,13.33011196,2044.0,2043.8,4.8928]
[1742400948965,13.33011196,2044.0,2043.8,4.89265]
[1742400949118,5.131,2044.0,2043.9,4.8926]
[1742400949319,21.40587451,2044.2,2044.0,4.89227]
[1742400949536,22.047,2044.2,2044.0,9.78444]
[1742400949760,22.047,2044.2,2044.1,4.89212]
[1742400949956,16.916,2044.2,2044.1,4.89212]
[1742400951263,14.51156451,2044.7,2044.3,4.89152]
[1742400951468,4.48987451,2044.5,2044.3,4.89148]
[1742400951629,4.48987451,2044.5,2044.4,4.89141]
[1742400952027,9.62087451,2044.7,2044.5,4.89107]
[1742400952222,9.62087451,2044.7,2044.4,4.89141]
[1742400952425,12.84445196,2044.7,2044.4,9.78264]
[1742400952649,12.84445196,2044.7,2044.5,4.89105]
[1742400952865,12.84345196,2044.7,2044.6,4.89093]
[1742400953025,16.917,2044.8,2044.7,4.89069]
[1742400953225,20.96839518,2044.8,2044.7,4.89069]
[1742400953426,16.917,2044.8,2044.7,4.89069]
[1742400953751,16.917,2044.8,2044.7,5.65229]
[1742400954376,4.05139518,2045.4,2045.2,4.88928]
[1742400954669,4.05139518,2045.4,2045.3,4.88925]
[1742400954861,4.05139518,2045.4,2045.2,4.88945]
[1742400955161,4.48584208,2045.4,2045.2,4.88945]
[1742400955567,4.48584208,2045.4,2045.2,4.88932]
[1742400955727,5.13,2045.5,2045.4,4.88901]
[1742400956072,16.916,2045.6,2045.4,4.88901]
[1742400956073,21.40184208,2045.6,2045.4,4.88901]
[1742400956281,25.11474629,2045.6,2045.4,4.88901]
[1742400956568,25.11474629,2045.6,2045.4,4.88889]
[1742400956732,25.11474629,2045.6,2045.3,4.88916]
[1742400958166,25.11474629,2045.6,2045.4,4.8889]
[1742400958379,16.916,2045.6,2045.5,4.88878]
[1742400958666,21.40184208,2045.6,2045.3,4.88918]
[1742400958842,26.29043208,2045.6,2045.2,4.88942]
[1742400959042,21.40184208,2045.6,2045.2,4.88933]
[1742400959242,21.40184208,2045.6,2045.3,4.88916]
[1742400959465,25.11464429,2045.6,2045.3,4.88916]
[1742400960131,25.11464429,2045.6,2045.3,4.88906]
[1742400960467,21.40184208,2045.6,2045.5,4.88878]
[1742400960764,21.40184208,2045.6,2045.4,4.88887]
[1742400960961,21.40184208,2045.6,2045.3,4.88925]
[1742400960962,26.29039208,2045.6,2045.3,4.88925]
[1742400961170,21.40184208,2045.6,2045.3,4.88925]
[1742400961527,25.11470629,2045.6,2045.3,9.77834]
[1742400961944,25.11470629,2045.6,2045.3,4.88909]
[1742400963448,25.11470629,2045.6,2045.3,9.77814]
[1742400963965,30.00338629,2045.6,2045.2,4.88936]
[1742400964143,0.813,2045.3,2044.8,11.77248]
[1742400964340,0.813,2045.3,2044.5,10.95104]
[1742400964341,4.89032,2044.9,2044.5,10.95104]
[1742400964538,4.48584208,2044.8,2044.5,4.89104]
[1742400964759,4.48584208,2044.8,2044.5,4.89115]
[1742400965374,4.48584208,2044.8,2044.5,4.89101]
[1742400965580,4.48584208,2044.8,2044.6,4.89092]
[1742400965786,5.126,2044.9,2044.7,4.8906]
[1742400965944,5.126,2045.2,2044.9,4.89013]
[1742400966370,4.48584208,2045.1,2044.8,4.89045]
[1742400966885,9.37560208,2045.1,2044.8,4.89045]
[1742400967075,4.48584208,2045.1,2044.8,4.89029]
[1742400967238,5.126,2045.2,2044.8,1.3774703]
[1742400967439,5.126,2045.5,2045.3,4.88903]
[1742400968554,5.126,2045.5,2045.2,4.88948]
[1742400968761,5.126,2045.5,2045.2,9.77882]
[1742400968989,4.48584208,2045.4,2045.0,4.88977]
[1742400969145,6.22220108,2045.4,2045.1,4.88973]
[1742400969346,11.11132108,2045.4,2045.0,9.77959]
[1742400969546,11.11132108,2045.4,2045.0,4.88977]
[1742400970081,6.22220108,2045.4,2045.1,4.8897]
[1742400970284,11.11130108,2045.4,2045.0,9.77965]
[1742400970975,4.48584208,2045.2,2044.9,10.95013]
[1742400971282,4.48584208,2045.2,2044.9,15.84026]
[1742400971654,4.48584208,2045.2,2045.1,4.88973]
[1742400971854,4.48584208,2045.2,2045.0,4.8899]
[1742400972256,5.31174208,2045.2,2045.0,4.8899]
[1742400973050,5.31174208,2045.2,2044.9,10.95013]
[1742400973261,5.31174208,2045.2,2045.0,4.88997]
[1742400973772,9.37488208,2045.4,2045.1,4.88973]
[1742400973965,10.20598208,2045.4,2045.0,4.88997]
[1742400974166,13.91966529,2045.4,2045.0,4.88997]
[1742400974474,13.91966529,2045.4,2045.0,4.88989]
[1742400974671,5.31684208,2045.4,2045.1,4.88959]
[1742400974842,9.61084208,2045.5,2044.9,4.8902]
[1742400975042,5.125,2045.5,2045.2,4.88948]
[1742400975242,4.48584208,2045.4,2045.2,4.88948]
[1742400976179,9.37494208,2045.4,2045.0,9.77961]
[1742400976340,13.08333129,2045.4,2045.0,9.77961]
[1742400976779,13.08333129,2045.4,2044.8,6.8424]
[1742400976780,13.08333129,2045.4,2044.9,4.89012]
[1742400977075,4.48584208,2045.2,2044.9,4.89006]
[1742400977278,4.05052742,2045.1,2044.9,4.89006]
[1742400977694,4.05052742,2045.1,2044.8,5.67283]
[1742400977846,4.05052742,2045.1,2044.8,9.78071]
[1742400978046,4.05052742,2045.1,2044.8,4.89028]
[1742400978497,4.05052742,2044.9,2044.6,11.7169]
[1742400978667,11.47792074,2045.1,2044.4,5.71388]
[1742400978668,4.05052742,2044.7,2044.4,5.71388]
[1742400978855,4.05052742,2044.5,2044.4,4.89118]
[1742400979186,4.05052742,2044.5,2044.2,5.71452]
[1742400979352,4.05052742,2044.5,2044.2,0.8227]
[1742400979549,4.05052742,2044.5,2044.3,4.89164]
[1742400979750,4.05052742,2044.5,2044.2,5.71441]
[1742400979972,4.05052742,2044.3,2044.0,11.75814]
[1742400980172,4.89155,2044.4,2044.0,10.95234]
[1742400980173,4.05052742,2044.1,2044.0,10.95234]
[1742400980360,4.05052742,2044.1,2044.0,4.89234]
[1742400980790,9.17552742,2044.3,2044.0,4.89234]
[1742400981093,14.06725742,2044.3,2044.0,4.89234]
[1742400981592,4.05052742,2044.1,2043.9,9.78489]
[1742400981774,4.05052742,2044.1,2043.9,4.89244]
[1742400982791,5.125,2044.3,2043.8,4.89271]
[1742400982962,4.05052742,2044.1,2043.8,4.89271]
[1742400983167,5.6692,2044.0,2043.7,4.89288]
[1742400983473,4.05052742,2043.9,2043.6,5.71711]
[1742400983679,4.05052742,2043.9,2043.6,5.71702]
[1742400983878,4.05052742,2043.9,2043.6,4.89322]
[1742400984184,4.05052742,2043.7,2043.5,4.89344]
[1742400984552,4.05052742,2043.7,2043.6,4.89332]
[1742400985280,9.17552742,2043.9,2043.7,4.89308]
[1742400985482,5.125,2043.9,2043.8,4.89284]
[1742400985796,16.908,2044.0,2043.9,4.8926]
[1742400986099,10.00042742,2044.4,2044.1,4.89204]
[1742400986293,10.00042742,2044.4,2043.9,4.89254]
[1742400986294,4.05052742,2044.2,2043.9,4.89254]
[1742400986597,4.05052742,2044.2,2044.0,4.89236]
[1742400986895,8.94241742,2044.2,2043.8,4.89283]
[1742400987059,4.05052742,2044.0,2043.8,4.89283]
[1742400987492,4.05052742,2044.0,2043.9,4.8926]
[1742400988183,4.05052742,2044.0,2043.8,4.89277]
[1742400988382,4.05052742,2044.0,2043.8,9.78545]
[1742400988694,4.05052742,2044.0,2043.8,4.89268]
[1742400988896,4.05052742,2044.0,2043.7,4.89297]
[1742400989075,4.05052742,2043.8,2043.7,4.89297]
[1742400989794,9.99132742,2044.0,2043.7,4.89296]
[1742400990593,4.05052742,2043.8,2043.7,4.89296]
[1742400990802,8.94347742,2043.8,2043.4,5.69866]
[1742400991096,4.05052742,2043.5,2043.3,4.8939]
[1742400992205,5.9149,2044.0,2043.3,4.89404]
[1742400992501,5.9149,2044.0,2043.8,4.8927]
[1742400992502,5.125,2044.0,2043.8,4.8927]
[1742400992704,5.125,2044.0,2043.9,4.8926]
[1742400993202,9.17552742,2044.0,2043.7,4.89297]
[1742400993407,4.05052742,2043.8,2043.6,4.8932]
[1742400993583,9.17552742,2044.0,2043.8,4.89283]
[1742400993968,9.17552742,2044.0,2043.7,4.89308]
[1742400994173,9.17552742,2044.0,2043.7,4.89298]
[1742400994704,4.05052742,2043.8,2043.7,4.89298]
[1742400995080,4.05052742,2043.8,2043.6,9.78635]
[1742400995380,4.05052742,2043.8,2043.7,4.89308]
[1742400995582,9.17552742,2044.0,2043.7,4.89297]
[1742400995795,4.05052742,2043.8,2043.7,4.89297]
[1742400996076,10.01737,2044.0,2043.9,4.8926]
[1742400996077,9.17552742,2044.0,2043.9,4.8926]
[1742400996706,4.05052742,2044.0,2043.9,4.8926]
[1742400997272,26.86502742,2044.2,2043.8,4.89281]
[1742400997508,8.94296742,2044.0,2043.7,4.89307]
[1742400997696,4.05052742,2043.8,2043.7,4.89307]
[1742400997903,4.05052742,2043.8,2043.6,4.89322]
[1742400998074,4.05052742,2043.8,2043.7,4.89308]
[1742400999477,4.05052742,2044.0,2043.8,4.89267]
[1742400999807,9.17552742,2044.0,2043.8,4.89267]
[1742400999984,9.17552742,2044.0,2043.7,9.78599]
[1742401000172,9.17552742,2044.0,2043.7,4.89293]
[1742401000775,9.17552742,2044.0,2043.7,9.7859]
[1742401001003,9.17552742,2044.0,2043.7,9.78592]
[1742401001504,5.125,2044.0,2043.8,9.78534]
[1742401001676,4.05052742,2044.1,2043.9,4.8926]
[1742401001873,16.914,2044.2,2044.1,4.89212]
[1742401002078,22.039,2044.2,2044.1,4.89212]
[1742401002406,4.05052742,2044.3,2044.1,4.89212]
[1742401002571,4.05052742,2044.3,2044.2,4.89188]
[1742401002774,4.05052742,2044.3,2044.1,4.89212]
[1742401002775,4.05052742,2044.3,2044.1,4.89191]
[1742401002974,4.05052742,2044.3,2044.0,5.69575]
[1742401003417,4.05052742,2044.1,2044.0,4.89225]
[1742401003572,4.05052742,2044.1,2043.8,5.71164]
[1742401003772,4.05052742,2044.1,2043.9,4.8924]
[1742401004012,4.05052742,2044.1,2044.0,4.89236]
[1742401006285,4.8912,2044.5,2044.2,4.89188]
[1742401006286,4.05052742,2044.3,2044.2,4.89188]
[1742401006917,22.6138,2044.8,2044.3,4.89142]
[1742401007084,9.17452742,2044.6,2044.4,4.8913]
[1742401007479,9.17452742,2044.6,2044.3,4.89142]
[1742401007678,9.17452742,2044.6,2044.3,9.7829]
[1742401007888,9.17452742,2044.6,2044.4,4.8913]
[1742401008622,9.17452742,2044.6,2044.3,4.89142]
[1742401008782,9.17452742,2044.6,2044.3,9.7829]
[1742401009121,9.17452742,2044.6,2044.3,4.89142]
[1742401009325,9.17452742,2044.6,2044.3,9.78287]
[1742401009483,9.17452742,2044.6,2044.2,0.7651]
[1742401009684,9.17452742,2044.6,2044.4,4.89127]
[1742401010515,9.17452742,2044.6,2044.3,4.89154]
[1742401010711,9.17452742,2044.6,2044.4,4.89137]
[1742401011015,9.17452742,2044.6,2044.4,9.78261]
[1742401011317,9.17452742,2044.6,2044.5,4.89117]
[1742401011617,16.915,2044.8,2044.6,4.89074]
[1742401011986,16.915,2044.8,2044.7,4.89069]
[1742401013288,19.81145274,2044.8,2044.5,4.89095]
[1742401013487,4.05052742,2044.6,2044.5,4.89095]
[1742401013829,4.05052742,2044.6,2044.4,4.89132]
[1742401014191,4.05052742,2044.6,2044.3,13.5367]
[1742401014523,4.05052742,2044.6,2044.4,4.8913]
[1742401014724,4.05052742,2044.6,2044.2,6.06]
[1742401014900,4.05052742,2044.4,2044.2,4.89169]
[1742401015101,4.05052742,2044.4,2044.3,4.89164]
[1742401015322,4.05052742,2044.4,2044.2,4.89169]
[1742401015700,4.05052742,2044.4,2044.1,6.69368046]
[1742401015906,4.05052742,2044.2,2044.1,0.8032]
[1742401016228,4.05052742,2044.2,2044.0,4.89227]
[1742401017343,1.48984503,2044.4,2044.1,4.89212]
[1742401017545,0.7725,2044.6,2044.2,4.89168]
[1742401017735,9.71397742,2044.6,2044.3,4.89157]
[1742401018044,9.71397742,2044.6,2044.2,9.78343]
[1742401018241,14.60508742,2044.6,2044.2,4.89168]
[1742401018406,4.05052742,2044.4,2044.2,4.89168]
[1742401019045,4.05052742,2044.4,2044.3,4.89164]
[1742401019210,4.82302742,2044.6,2044.3,4.89164]
[1742401019411,4.05052742,2044.4,2044.2,9.78343]
[1742401019610,4.05052742,2044.4,2044.2,4.89168]
[1742401019812,4.05052742,2044.4,2044.2,9.78345]
[1742401020244,4.05052742,2044.4,2044.2,4.89168]
[1742401020543,8.94204742,2044.4,2044.0,9.78461]
[1742401020844,4.05052742,2044.2,2044.0,9.78461]
[1742401021010,4.05052742,2044.2,2044.0,4.89226]
[1742401021336,4.05052742,2044.2,2044.0,9.78445]
[1742401021529,4.05052742,2044.2,2044.1,4.89212]
[1742401021840,0.7725,2044.6,2044.3,4.89142]
[1742401022009,5.121,2044.6,2044.5,4.89107]
[1742401022204,5.121,2044.6,2044.4,4.89141]
[1742401022639,5.121,2044.6,2044.4,4.89125]
[1742401022943,9.17152742,2044.7,2044.4,4.89125]
[1742401023138,9.17152742,2044.7,2044.4,9.78253]
[1742401023441,9.17152742,2044.7,2044.4,4.89125]
[1742401023642,9.17152742,2044.7,2044.5,4.89116]
[1742401024544,9.17152742,2044.7,2044.4,9.78253]
[1742401024844,9.17152742,2044.7,2044.4,9.78256]
[1742401025041,9.17152742,2044.7,2043.9,13.95259]
[1742401025042,4.89148,2044.4,2044.0,4.89229]
[1742401025342,8.94257742,2044.2,2043.8,0.8212]
[1742401025542,4.05052742,2044.0,2043.8,0.8212]
[1742401025919,4.05052742,2044.0,2043.7,4.89289]
[1742401026148,4.05052742,2044.0,2043.7,4.89308]
[1742401026348,9.74953742,2044.2,2043.7,4.89288]
[1742401026553,14.64157742,2044.2,2043.8,4.89271]
[1742401026843,4.89264,2043.9,2043.5,9.78693]
[1742401027047,4.05052742,2043.8,2043.5,9.78693]
[1742401027348,5.121,2043.9,2043.7,5.70285]
[1742401027642,5.121,2043.9,2043.7,0.8099]
[1742401027945,10.01362,2043.9,2043.6,4.89323]
[1742401028251,10.01362,2043.9,2043.6,4.89328]
[1742401028415,14.50609949,2043.9,2043.5,5.70333]
[1742401028615,19.39886949,2043.9,2043.5,5.70333]
[1742401028815,4.89287,2043.8,2043.5,4.89343]
[1742401029111,9.38556949,2043.7,2043.3,5.65485]
[1742401029338,4.89332,2043.6,2043.2,4.89425]
[1742401029528,4.89332,2043.6,2043.2,4.89417]
[1742401030125,4.89332,2043.6,2043.3,4.89402]
[1742401030346,4.49247949,2043.5,2043.1,5.65539]
[1742401030534,9.38612949,2043.5,2043.2,4.89415]
[1742401030850,9.38612949,2043.5,2043.0,6.43493932]
[1742401030851,4.89404,2043.3,2043.0,4.89465]
[1742401031025,9.38713949,2043.1,2042.7,12.29074]
[1742401031224,14.50813949,2043.1,2042.7,7.39536]
[1742401031536,14.50813949,2043.1,2042.8,4.89512]
[1742401031743,14.50800949,2043.1,2042.8,4.89512]
[1742401031933,9.61347949,2043.1,2042.8,4.89509]
[1742401032247,14.50812949,2043.1,2042.7,7.39533]
[1742401032449,14.50812949,2043.1,2042.7,7.3953]
[1742401032746,14.50812949,2043.1,2042.9,4.89488]
[1742401032747,5.121,2043.1,2042.9,4.89488]
[1742401032962,5.121,2043.1,2043.0,4.89476]
[1742401033454,6.41550586,2043.5,2043.0,4.89476]
[1742401033455,9.61347949,2043.5,2043.2,4.89417]
[1742401033618,9.61347949,2043.5,2043.2,9.78832]
[1742401033815,0.8174,2043.6,2043.4,4.89368]
[1742401034060,5.121,2043.7,2043.5,4.8934]
[1742401034562,5.121,2043.7,2043.6,4.89332]
[1742401034920,17.7402,2044.0,2043.7,4.89294]
[1742401035214,17.7402,2044.0,2043.4,5.68868]
[1742401035215,9.61347949,2043.9,2043.6,9.78652]
[1742401035453,10.37330932,2043.9,2043.4,0.7949]